fUST/lending_fUST_20240208
["ID","MTS","AMOUNT","RATE_DAILY","PERIOD"]
[313423224,1707330632726,-1000.0,0.00025,2]
[313423225,1707330632736,-1000.0,0.00025,2]
[313423226,1707330632745,-1000.0,0.00025,2]
[313423227,1707330632755,-1000.0,0.00025,2]
[313423228,1707330632763,-1000.0,0.00025,2]
[313423229,1707330632773,-1000.0,0.00025,2]
[313423230,1707330632782,-13330.73372713,0.00025616,2]
[313423231,1707330632798,-59571.39293873,0.00025616,2]
[313423261,1707330638547,-2094.656582,0.00023631,2]
[313423262,1707330639684,-7872.7195287,0.00023631,2]
[313423263,1707330639693,-4179.85662615,0.00023631,2]
[313423264,1707330639703,-2090.59510347,0.00024644,2]
[313423265,1707330639712,-368.47770837,0.00025615,2]
[313423266,1707330639722,-163.81,0.00025615,2]
[313423267,1707330639732,-221.37468063,0.00025615,2]
[313423268,1707330639741,-410.21814736,0.00025615,2]
[313423269,1707330639750,-303.46895421,0.00025615,2]
[313423270,1707330639759,-511.90567868,0.00025615,2]
[313423271,1707330639769,-3936.22266894,0.00025616,2]
[313423272,1707330639779,-26103.41612904,0.00025616,2]
[313423273,1707330639789,-4275.25945008,0.00025616,2]
[313423274,1707330639798,-391.0,0.00025896,7]
[313423275,1707330639808,-1237.66980023,0.00026941,2]
[313423276,1707330639818,-1382.39428642,0.00027,2]
[313423277,1707330639827,-155.0294556,0.00027,2]
[313423278,1707330639837,-953.79146371,0.00027119,2]
[313423279,1707330639846,-164.82035217,0.00027294,2]
[313423280,1707330639856,-4732.83381239,0.00027393,2]
[313423281,1707330639865,-20914.12256812,0.00027394,2]
[313423282,1707330639874,-500.0,0.00027397,3]
[313423283,1707330639884,-500.0,0.00027397,2]
[313423284,1707330639893,-500.0,0.00027397,3]
[313423285,1707330639901,-460.61215802,0.00027397,3]
[313423286,1707330639910,-500.0,0.00027397,3]
[313423287,1707330639919,-500.0,0.00027397,3]
[313423288,1707330639928,-500.0,0.00027397,3]
[313423289,1707330639937,-500.0,0.00027397,3]
[313423290,1707330639946,-500.0,0.00027397,3]
[313423291,1707330639955,-500.0,0.00027397,2]
[313423292,1707330639964,-500.0,0.00027397,3]
[313423293,1707330639973,-1000.0,0.00027397,2]
[313423294,1707330639982,-500.0,0.00027397,3]
[313423295,1707330639991,-155.0,0.00027397,2]
[313423296,1707330640000,-228.09610258,0.00027397,3]
[313423297,1707330640009,-1274.45,0.00027397,3]
[313423298,1707330640019,-554.27336056,0.00027397,3]
[313423299,1707330640029,-500.0,0.00027397,3]
[313423300,1707330640038,-500.0,0.00027397,3]
[313423301,1707330640049,-758.09,0.00027397,3]
[313423302,1707330640143,-500.0,0.00027397,3]
[313423303,1707330640152,-548.60961144,0.00027397,3]
[313423304,1707330640162,-505.61619828,0.00027397,3]
[313423305,1707330640171,-500.0,0.00027397,3]
[313423306,1707330640180,-8053.84,0.00027397,3]
[313423307,1707330640190,-500.0,0.00027397,3]
[313423308,1707330640200,-832.62,0.00027397,3]
[313423309,1707330640210,-2848.94,0.00027397,3]
[313423310,1707330640219,-500.0,0.00027397,3]
[313423311,1707330640228,-500.0,0.00027397,3]
[313423312,1707330640237,-552.03,0.00027397,3]
[313423313,1707330640246,-500.0,0.00027397,3]
[313423314,1707330640255,-500.0,0.00027397,3]
[313423315,1707330640264,-1438.98,0.00027397,3]
[313423316,1707330640274,-500.0,0.00027397,3]
[313423317,1707330640284,-2333.17,0.00027397,3]
[313423318,1707330640294,-500.0,0.00027397,3]
[313423319,1707330640303,-500.0,0.00027397,3]
[313423320,1707330640312,-4297.76,0.00027397,3]
[313423321,1707330640322,-500.0,0.00027397,3]
[313423322,1707330640332,-500.0,0.00027397,3]
[313423323,1707330640342,-500.0,0.00027397,3]
[313423324,1707330640352,-4902.52,0.00027397,3]
[313423325,1707330640361,-1112.65,0.00027397,3]
[313423326,1707330640370,-1044.03,0.00027397,3]
[313423327,1707330640379,-1339.9,0.00027397,3]
[313423328,1707330640388,-500.0,0.00027397,3]
[313423329,1707330640397,-500.0,0.00027397,3]
[313423330,1707330640407,-500.0,0.00027397,2]
[313423331,1707330640417,-500.0,0.00027397,3]
[313423332,1707330640426,-621.01,0.00027397,3]
[313423333,1707330640435,-1522.28,0.00027397,3]
[313423334,1707330640445,-2284.75,0.00027397,3]
[313423335,1707330640454,-749.22,0.00027397,3]
[313423336,1707330640463,-360.60507902,0.000275,2]
[313423337,1707330640473,-500.0,0.00027671,2]
[313423338,1707330640483,-500.0,0.00027671,3]
[313423339,1707330640491,-500.0,0.00027671,3]
[313423340,1707330640501,-500.0,0.00027671,3]
[313423341,1707330640510,-500.0,0.00027671,3]
[313423343,1707330640520,-500.0,0.00027671,2]
[313423345,1707330640530,-500.0,0.00027671,3]
[313423346,1707330640539,-1274.45,0.00027671,3]
[313423347,1707330640548,-500.0,0.00027671,3]
[313423349,1707330640557,-758.09,0.00027671,3]
[313423350,1707330640566,-500.0,0.00027671,3]
[313423351,1707330640575,-500.0,0.00027671,3]
[313423353,1707330640584,-8053.84,0.00027671,3]
[313423354,1707330640593,-500.0,0.00027671,3]
[313423356,1707330640603,-832.62,0.00027671,3]
[313423357,1707330640611,-2848.94,0.00027671,3]
[313423359,1707330640620,-500.0,0.00027671,3]
[313423361,1707330640630,-552.03,0.00027671,3]
[313423363,1707330640639,-500.0,0.00027671,3]
[313423366,1707330640648,-1438.98,0.00027671,3]
[313423368,1707330640657,-500.0,0.00027671,3]
[313423371,1707330640666,-2333.17,0.00027671,3]
[313423374,1707330640675,-500.0,0.00027671,3]
[313423375,1707330640684,-500.0,0.00027671,3]
[313423376,1707330640693,-500.0,0.00027671,3]
[313423377,1707330640703,-4297.76,0.00027671,3]
[313423378,1707330640712,-500.0,0.00027671,3]
[313423379,1707330640721,-500.0,0.00027671,3]
[313423380,1707330640730,-4902.52,0.00027671,3]
[313423381,1707330640740,-1112.65,0.00027671,3]
[313423382,1707330640749,-1044.03,0.00027671,3]
[313423383,1707330640758,-1339.9,0.00027671,3]
[313423384,1707330640767,-500.0,0.00027671,3]
[313423385,1707330640777,-500.0,0.00027671,2]
[313423386,1707330640785,-500.0,0.00027671,3]
[313423387,1707330640795,-621.01,0.00027671,3]
[313423388,1707330640804,-1522.28,0.00027671,3]
[313423389,1707330640813,-2284.75,0.00027671,3]
[313423390,1707330640822,-749.22,0.00027671,3]
[313423391,1707330640831,-200598.77292872,0.000279,2]
[313423392,1707330640840,-500.0,0.00027944,2]
[313423393,1707330640849,-523.97985736,0.00027944,2]
[313423394,1707330640860,-500.0,0.00027944,2]
[313423395,1707330640869,-196.35267702,0.00027944,2]
[313423396,1707330640879,-500.0,0.00027944,2]
[313423397,1707330640888,-243.48065561,0.00027944,2]
[313423398,1707330640897,-500.0,0.00027944,2]
[313423399,1707330640906,-500.0,0.00027944,2]
[313423400,1707330640915,-500.0,0.00027944,2]
[313423401,1707330640924,-500.0,0.00027944,2]
[313423402,1707330640933,-500.0,0.00027944,2]
[313423403,1707330640942,-500.0,0.00027944,2]
[313423404,1707330640951,-500.0,0.00027944,2]
[313423406,1707330640961,-272.05130084,0.00027944,2]
[313423407,1707330640969,-500.0,0.00027944,2]
[313423409,1707330640979,-500.0,0.00027944,2]
[313423411,1707330640988,-500.0,0.00027944,2]
[313423413,1707330640997,-500.0,0.00027944,2]
[313423415,1707330641006,-500.0,0.00027944,2]
[313423417,1707330641015,-500.0,0.00027944,2]
[313423419,1707330641024,-500.0,0.00027944,2]
[313423421,1707330641034,-500.0,0.00027944,2]
[313423424,1707330641048,-365.7250559,0.00027944,2]
[313423426,1707330641061,-500.0,0.00027944,2]
[313423429,1707330641073,-500.0,0.00027944,2]
[313423431,1707330641086,-500.0,0.00027944,2]
[313423433,1707330641096,-500.0,0.00027944,2]
[313423435,1707330641107,-500.0,0.00027945,2]
[313423437,1707330641119,-500.0,0.00027945,3]
[313423438,1707330641131,-500.0,0.00027945,3]
[313423439,1707330641143,-500.0,0.00027945,3]
[313423441,1707330641156,-254.62200392,0.00027945,3]
[313423443,1707330641168,-500.0,0.00027945,2]
[313423445,1707330641181,-500.0,0.00027945,3]
[313423448,1707330641193,-1274.45,0.00027945,3]
[313423450,1707330641204,-500.0,0.00027945,3]
[313423452,1707330641214,-758.09,0.00027945,3]
[313423454,1707330641225,-500.0,0.00027945,3]
[313423456,1707330641237,-500.0,0.00027945,3]
[313423457,1707330641249,-8053.84,0.00027945,3]
[313423458,1707330641261,-500.0,0.00027945,3]
[313423459,1707330641271,-832.62,0.00027945,3]
[313423460,1707330641284,-2848.94,0.00027945,3]
[313423461,1707330641296,-500.0,0.00027945,3]
[313423462,1707330641308,-552.03,0.00027945,3]
[313423463,1707330641319,-500.0,0.00027945,3]
[313423464,1707330641329,-1438.98,0.00027945,3]
[313423465,1707330641343,-500.0,0.00027945,3]
[313423466,1707330641357,-2333.17,0.00027945,3]
[313423467,1707330641369,-500.0,0.00027945,3]
[313423468,1707330641383,-500.0,0.00027945,3]
[313423469,1707330641394,-500.0,0.00027945,3]
[313423470,1707330641406,-500.0,0.00027945,3]
[313423471,1707330641417,-4297.76,0.00027945,3]
[313423472,1707330641429,-500.0,0.00027945,3]
[313423473,1707330641441,-4902.52,0.00027945,3]
[313423474,1707330641453,-1112.65,0.00027945,3]
[313423475,1707330641464,-1044.03,0.00027945,3]
[313423476,1707330641477,-1339.9,0.00027945,3]
[313423477,1707330641488,-500.0,0.00027945,3]
[313423478,1707330641501,-423.28377858,0.00027945,2]
[313423479,1707330641513,-500.0,0.00027945,3]
[313423481,1707330641524,-621.01,0.00027945,3]
[313423483,1707330641535,-1522.28,0.00027945,3]
[313423485,1707330641545,-2284.75,0.00027945,3]
[313423487,1707330641555,-749.22,0.00027945,3]
[313423489,1707330641565,-1716.49476713,0.00028,2]
[313423492,1707330641576,-154.9690062,0.00028,2]
[313423494,1707330641588,-51930.88733907,0.00028,2]
[313423496,1707330641600,-503.1022725,0.00028,2]
[313423498,1707330641611,-100071.49393018,0.000282,3]
[313423500,1707330641622,-1464.42431605,0.000282,2]
[313423502,1707330641634,-1464.42431605,0.000282,2]
[313423504,1707330641644,-1464.42431605,0.000282,2]
[313423507,1707330641654,-1464.42431605,0.000282,2]
[313423509,1707330641665,-1464.42431605,0.000282,2]
[313423511,1707330641674,-1464.42431605,0.000282,2]
[313423513,1707330641685,-1464.42431605,0.000282,2]
[313423515,1707330641695,-1464.42431605,0.000282,2]
[313423517,1707330641707,-1464.42431605,0.000282,2]
[313423519,1707330641718,-1464.42431605,0.000282,2]
[313423521,1707330641729,-500.0,0.00028219,2]
[313423524,1707330641740,-500.0,0.00028219,3]
[313423526,1707330641750,-500.0,0.00028219,3]
[313423528,1707330641761,-500.0,0.00028219,3]
[313423530,1707330641772,-500.0,0.00028219,2]
[313423532,1707330641782,-500.0,0.00028219,3]
[313423534,1707330641793,-1274.45,0.00028219,3]
[313423536,1707330641804,-500.0,0.00028219,3]
[313423539,1707330641815,-758.09,0.00028219,3]
[313423541,1707330641825,-500.0,0.00028219,3]
[313423543,1707330641835,-8053.84,0.00028219,3]
[313423545,1707330641846,-500.0,0.00028219,3]
[313423546,1707330641857,-832.62,0.00028219,3]
[313423547,1707330641868,-2848.94,0.00028219,3]
[313423548,1707330641878,-552.03,0.00028219,3]
[313423549,1707330641889,-500.0,0.00028219,3]
[313423550,1707330641900,-1438.98,0.00028219,3]
[313423551,1707330641911,-500.0,0.00028219,3]
[313423552,1707330641921,-2333.17,0.00028219,3]
[313423553,1707330641931,-500.0,0.00028219,3]
[313423554,1707330641942,-500.0,0.00028219,3]
[313423555,1707330641953,-500.0,0.00028219,3]
[313423556,1707330641964,-500.0,0.00028219,3]
[313423557,1707330641974,-4297.76,0.00028219,3]
[313423558,1707330641985,-500.0,0.00028219,3]
[313423559,1707330641995,-4902.52,0.00028219,3]
[313423560,1707330642006,-1112.65,0.00028219,3]
[313423561,1707330642017,-1044.03,0.00028219,3]
[313423562,1707330642027,-1339.9,0.00028219,3]
[313423563,1707330642038,-500.0,0.00028219,3]
[313423564,1707330642050,-500.0,0.00028219,3]
[313423565,1707330642060,-621.01,0.00028219,3]
[313423566,1707330642070,-1522.28,0.00028219,3]
[313423567,1707330642078,-2284.75,0.00028219,3]
[313423568,1707330642088,-749.22,0.00028219,3]
[313423570,1707330642208,-304.424875,0.00028461,2]
[313423572,1707330642221,-200.0,0.00028486,15]
[313423574,1707330642231,-348.0,0.00028486,15]
[313423576,1707330642241,-1260.68768877,0.00028492,5]
[313423578,1707330642250,-451.71313205,0.00028493,2]
[313423579,1707330642259,-500.0,0.00028493,3]
[313423580,1707330642269,-500.0,0.00028493,3]
[313423581,1707330642278,-196.15686172,0.00028493,2]
[313423583,1707330642287,-500.0,0.00028493,3]
[313423585,1707330642296,-1274.45,0.00028493,3]
[313423586,1707330642305,-500.0,0.00028493,3]
[313423588,1707330642314,-758.09,0.00028493,3]
[313423589,1707330642324,-500.0,0.00028493,3]
[313423590,1707330642335,-6138.78086599,0.00028493,3]
[313423646,1707330643465,-1964.14,0.00027384,3]
[313423647,1707330643475,-500.0,0.00027397,3]
[313423648,1707330643485,-500.0,0.00027671,3]
[313423649,1707330643494,-832.62,0.00028493,3]
[313423650,1707330643503,-530.03905131,0.00028493,3]
[313423651,1707330643533,-0.02477458,0.00028493,3]
[313423652,1707330643545,-1341.66808564,0.00028493,3]
[313423685,1707330646664,-1732.39040629,0.00027383,2]
[313423686,1707330646674,-6455.75,0.00027397,3]
[313423687,1707330646683,-6455.75,0.00027671,3]
[313423688,1707330646692,-500.0,0.00027945,3]
[313423689,1707330646701,-6455.75,0.00027945,3]
[313423690,1707330646711,-500.0,0.00028219,3]
[313423691,1707330646720,-6455.75,0.00028219,3]
[313423692,1707330646730,-977.20808847,0.00028493,3]
[313423693,1707330646739,-552.03,0.00028493,3]
[313423694,1707330646749,-500.0,0.00028493,3]
[313423695,1707330646758,-1438.98,0.00028493,3]
[313423696,1707330646768,-500.0,0.00028493,3]
[313423697,1707330646777,-2333.17,0.00028493,3]
[313423698,1707330646786,-500.0,0.00028493,3]
[313423699,1707330646795,-500.0,0.00028493,3]
[313423700,1707330646805,-500.0,0.00028493,3]
[313423701,1707330646814,-500.0,0.00028493,3]
[313423702,1707330646823,-4297.76,0.00028493,3]
[313423703,1707330646833,-500.0,0.00028493,3]
[313423704,1707330646842,-4902.52,0.00028493,3]
[313423705,1707330646851,-1112.65,0.00028493,3]
[313423706,1707330646860,-1044.03,0.00028493,3]
[313423707,1707330646870,-1339.9,0.00028493,3]
[313423708,1707330646879,-500.0,0.00028493,3]
[313423709,1707330646888,-500.0,0.00028493,3]
[313423710,1707330646898,-621.01,0.00028493,3]
[313423711,1707330646907,-1522.28,0.00028493,3]
[313423712,1707330646916,-2284.75,0.00028493,3]
[313423713,1707330646925,-749.22,0.00028493,3]
[313423714,1707330646933,-500.0,0.00028493,3]
[313423715,1707330646942,-6455.75,0.00028493,3]
[313423716,1707330646951,-21868.77399123,0.00028667,2]
[313423717,1707330646960,-174.62917015,0.00028762,2]
[313423718,1707330646969,-226.70973581,0.00028762,2]
[313423719,1707330646978,-310.27599193,0.00028763,2]
[313423720,1707330646987,-1262.55072275,0.00028763,2]
[313423721,1707330646996,-357.70742454,0.00028763,2]
[313423722,1707330647005,-699.25416012,0.00028763,2]
[313423723,1707330647014,-155.02170304,0.00028764,2]
[313423724,1707330647023,-155.77574034,0.00028764,2]
[313423725,1707330647032,-427.05473099,0.00028764,2]
[313423726,1707330647041,-179.15995042,0.00028764,2]
[313423727,1707330647050,-167.06439734,0.00028765,2]
[313423728,1707330647059,-337.8684957,0.00028765,5]
[313423729,1707330647069,-1635.55251526,0.00028765,2]
[313423730,1707330647078,-2820.97195235,0.00028766,2]
[313423731,1707330647088,-1742.97736773,0.00028766,2]
[313423732,1707330647098,-261.10164954,0.00028766,2]
[313423733,1707330647109,-500.0,0.00028767,3]
[313423734,1707330647119,-500.0,0.00028767,3]
[313423735,1707330647130,-500.0,0.00028767,3]
[313423736,1707330647140,-1274.45,0.00028767,3]
[313423737,1707330647151,-758.09,0.00028767,3]
[313423738,1707330647162,-500.0,0.00028767,3]
[313423739,1707330647173,-832.62,0.00028767,3]
[313423740,1707330647185,-2848.94,0.00028767,3]
[313423741,1707330647196,-552.03,0.00028767,3]
[313423742,1707330647207,-500.0,0.00028767,3]
[313423743,1707330647219,-1438.98,0.00028767,3]
[313423744,1707330647231,-500.0,0.00028767,3]
[313423745,1707330647250,-2333.17,0.00028767,3]
[313423746,1707330647262,-500.0,0.00028767,3]
[313423747,1707330647273,-500.0,0.00028767,3]
[313423748,1707330647284,-500.0,0.00028767,3]
[313423749,1707330647295,-500.0,0.00028767,3]
[313423750,1707330647307,-4297.76,0.00028767,3]
[313423751,1707330647318,-500.0,0.00028767,3]
[313423752,1707330647333,-4902.52,0.00028767,3]
[313423753,1707330647355,-1112.65,0.00028767,3]
[313423754,1707330647381,-1044.03,0.00028767,3]
[313423755,1707330647393,-1339.9,0.00028767,3]
[313423756,1707330647405,-500.0,0.00028767,3]
[313423757,1707330647416,-500.0,0.00028767,3]
[313423758,1707330647427,-621.01,0.00028767,3]
[313423759,1707330647439,-1522.28,0.00028767,3]
[313423760,1707330647456,-2284.75,0.00028767,3]
[313423761,1707330647466,-749.22,0.00028767,3]
[313423762,1707330647477,-500.0,0.00028767,3]
[313423763,1707330647489,-6455.75,0.00028767,3]
[313423764,1707330647500,-2000.0,0.00028868,2]
[313423765,1707330647510,-2000.0,0.00028868,2]
[313423766,1707330647521,-234.50540135,0.00028999,2]
[313423767,1707330647531,-459.60686937,0.00029,3]
[313423768,1707330647542,-183.31759979,0.00029,10]
[313423769,1707330647556,-154.95351395,0.00029,2]
[313423770,1707330647567,-56306.24439266,0.00029,2]
[313423771,1707330647579,-1778.0,0.00029,4]
[313423772,1707330647589,-500.0,0.00029041,3]
[313423773,1707330647600,-594.08902643,0.00029041,3]
[313423774,1707330647611,-500.0,0.00029041,3]
[313423775,1707330647621,-1274.45,0.00029041,3]
[313423776,1707330647632,-758.09,0.00029041,3]
[313423777,1707330647643,-500.0,0.00029041,3]
[313423778,1707330647654,-832.62,0.00029041,3]
[313423779,1707330647665,-2848.94,0.00029041,3]
[313423780,1707330647675,-552.03,0.00029041,3]
[313423781,1707330647686,-500.0,0.00029041,3]
[313423782,1707330647696,-1438.98,0.00029041,3]
[313423783,1707330647706,-500.0,0.00029041,3]
[313423784,1707330647716,-2333.17,0.00029041,3]
[313423785,1707330647727,-500.0,0.00029041,3]
[313423786,1707330647737,-500.0,0.00029041,3]
[313423787,1707330647747,-500.0,0.00029041,3]
[313423788,1707330647758,-500.0,0.00029041,3]
[313423789,1707330647768,-4297.76,0.00029041,3]
[313423790,1707330647779,-500.0,0.00029041,3]
[313423791,1707330647789,-4902.52,0.00029041,3]
[313423792,1707330647799,-1112.65,0.00029041,3]
[313423793,1707330647809,-1044.03,0.00029041,3]
[313423794,1707330647819,-211.402659,0.00029041,2]
[313423795,1707330647829,-1339.9,0.00029041,3]
[313423796,1707330647839,-211.402659,0.00029041,2]
[313423797,1707330647848,-500.0,0.00029041,3]
[313423798,1707330647870,-500.0,0.00029041,3]
[313423799,1707330647881,-621.01,0.00029041,3]
[313423800,1707330647890,-1522.28,0.00029041,3]
[313423801,1707330647899,-2284.75,0.00029041,3]
[313423802,1707330647908,-749.22,0.00029041,3]
[313423803,1707330647917,-500.0,0.00029041,3]
[313423804,1707330647926,-6455.75,0.00029041,3]
[313423805,1707330647935,-151.0,0.00029208,2]
[313423806,1707330647944,-500.0,0.00029315,3]
[313423807,1707330647953,-151.0,0.00029315,2]
[313423808,1707330647963,-151.0,0.00029315,2]
[313423809,1707330647972,-500.0,0.00029315,3]
[313423810,1707330647981,-1274.45,0.00029315,3]
[313423811,1707330647991,-758.09,0.00029315,3]
[313423812,1707330648000,-151.0,0.00029315,2]
[313423813,1707330648010,-151.0,0.00029315,2]
[313423814,1707330648020,-151.0,0.00029315,2]
[313423815,1707330648029,-500.0,0.00029315,3]
[313423816,1707330648039,-151.0,0.00029315,2]
[313423817,1707330648049,-832.62,0.00029315,3]
[313423818,1707330648058,-2848.94,0.00029315,3]
[313423819,1707330648068,-552.03,0.00029315,3]
[313423820,1707330648078,-500.0,0.00029315,3]
[313423821,1707330648087,-1438.98,0.00029315,3]
[313423822,1707330648097,-500.0,0.00029315,3]
[313423823,1707330648107,-2333.17,0.00029315,3]
[313423824,1707330648117,-500.0,0.00029315,3]
[313423825,1707330648127,-500.0,0.00029315,3]
[313423826,1707330648136,-500.0,0.00029315,3]
[313423827,1707330648145,-500.0,0.00029315,3]
[313423828,1707330648155,-4297.76,0.00029315,3]
[313423829,1707330648164,-500.0,0.00029315,3]
[313423830,1707330648174,-4902.52,0.00029315,3]
[313423831,1707330648183,-1112.65,0.00029315,3]
[313423832,1707330648194,-1044.03,0.00029315,3]
[313423833,1707330648204,-1339.9,0.00029315,3]
[313423834,1707330648214,-500.0,0.00029315,3]
[313423835,1707330648224,-500.0,0.00029315,3]
[313423836,1707330648233,-621.01,0.00029315,3]
[313423837,1707330648243,-1522.28,0.00029315,3]
[313423838,1707330648252,-2284.75,0.00029315,3]
[313423839,1707330648263,-749.22,0.00029315,3]
[313423840,1707330648273,-500.0,0.00029315,3]
[313423841,1707330648283,-6455.75,0.00029315,3]
[313423842,1707330648293,-624.41774313,0.0002935,2]
[313423843,1707330648303,-151.0,0.00029589,2]
[313423844,1707330648312,-500.0,0.00029589,3]
[313423845,1707330648321,-500.0,0.00029589,3]
[313423846,1707330648332,-60.84276955,0.00029589,3]
[313423847,1707330648346,-1213.60723045,0.00029589,3]
[313423848,1707330648361,-319.60091293,0.00029589,3]
[313423849,1707330649613,-438.48908707,0.00029589,3]
[313423850,1707330649622,-500.0,0.00029589,3]
[313423851,1707330649632,-832.62,0.00029589,3]
[313423852,1707330649641,-376.60746948,0.00029589,3]
[313423858,1707331625098,-155.0,0.00018971,3]
[313423859,1707331625118,-683.21068375,0.00018973,2]
[313423860,1707331640426,155.0,0.00017075,3]
[313423861,1707331648084,-3496.6459424,0.00018973,2]
[313423862,1707331648110,-24900.0,0.00018974,2]
[313423863,1707331648131,-326.42112036,0.00022,2]
[313423864,1707331648151,-427.22785454,0.00022,2]
[313423865,1707331648174,-3980.62518534,0.00022,2]
[313423866,1707331648222,-166.666666,0.00022707,2]
[313423867,1707331648244,-267.500575,0.00023173,2]
[313423868,1707331648267,-168.476149,0.00023889,2]
[313423869,1707331648287,-932.88744453,0.00023899,2]
[313423870,1707331648307,-843.83159353,0.00024644,2]
[313423871,1707331648327,-1829.23863687,0.00024644,2]
[313423872,1707331648353,-85.15617164,0.00025,2]
[313423892,1707331771143,-155.0,0.00024899,4]
[313423893,1707331771163,-1667.5943976,0.000249,2]
[313423894,1707331771183,-1416.30187782,0.00025,2]
[313423942,1707331832623,-155.0,0.00022829,4]
[313423944,1707331832632,-267.500575,0.00024549,2]
[313423946,1707331832641,-4797.94888524,0.00025,2]
[313423948,1707331832650,-335.52992191,0.00025365,2]
[313423950,1707331832659,-507.90041166,0.00025366,2]
[313423952,1707331832668,-305.25738812,0.00025366,2]
[313424032,1707331839560,-20.89869524,0.00025366,2]
[313424033,1707331839570,-295.73444606,0.00025367,2]
[313424034,1707331839579,-3539.45833544,0.00025367,2]
[313424035,1707331839589,-1031.14344444,0.00025367,2]
[313424036,1707331839598,-36003.28152861,0.00025368,2]
[313424037,1707331839607,-178.08854988,0.00025387,2]
[313424038,1707331839616,-4761.39735165,0.00025637,2]
[313424039,1707331839625,-724.08804088,0.00025637,2]
[313424040,1707331839635,-5587.69480014,0.00025637,2]
[313424041,1707331839644,-2373.98566897,0.00025637,2]
[313424042,1707331839654,-166.666666,0.00025802,2]
[313424043,1707331839663,-157.80769843,0.00026197,2]
[313424044,1707331839672,-1753.55,0.00026656,3]
[313424045,1707331839682,-16680.3781918,0.00026666,2]
[313424046,1707331839691,-970.01807495,0.00026667,2]
[313424047,1707331839700,-155.00465014,0.00027,2]
[313424048,1707331839710,-1382.39428642,0.00027,2]
[313424049,1707331839721,-5000.0,0.00027158,5]
[313424050,1707331839730,-500.0,0.00027397,3]
[313424051,1707331839740,-500.0,0.00027397,2]
[313424052,1707331839749,-500.0,0.00027397,3]
[313424053,1707331839758,-500.0,0.00027397,3]
[313424054,1707331839767,-1000.0,0.00027397,2]
[313424055,1707331839776,-500.0,0.00027397,3]
[313424056,1707331839786,-933.83,0.00027397,3]
[313424057,1707331839796,-500.0,0.00027397,3]
[313424058,1707331839805,-500.0,0.00027397,3]
[313424059,1707331839815,-1249.98,0.00027397,3]
[313424060,1707331839824,-500.0,0.00027397,3]
[313424061,1707331839834,-500.0,0.00027397,3]
[313424062,1707331839843,-500.0,0.00027397,3]
[313424063,1707331839852,-786.19,0.00027397,3]
[313424064,1707331839861,-500.0,0.00027397,2]
[313424065,1707331839870,-500.0,0.00027397,3]
[313424066,1707331839880,-500.0,0.00027397,3]
[313424067,1707331839889,-1133.65,0.00027397,3]
[313424068,1707331839898,-3743.83,0.00027397,3]
[313424069,1707331839907,-500.0,0.00027397,3]
[313424070,1707331839916,-500.0,0.00027397,2]
[313424071,1707331839927,-4075.13,0.00027397,3]
[313424072,1707331839938,-1048.26,0.00027397,3]
[313424073,1707331839947,-500.0,0.00027397,3]
[313424074,1707331839957,-1119.55,0.00027397,3]
[313424075,1707331839966,-500.0,0.00027397,3]
[313424076,1707331839975,-1303.87,0.00027397,3]
[313424077,1707331839985,-675.01,0.00027397,3]
[313424078,1707331839994,-500.0,0.00027397,3]